Cogmind - Beta 16 @@@ ROGUE MODE // 2025.11.27 @ 16:28:55 Player: TormentedShadow Result: Destroyed by G-34 Mercenary with Small Laser Performance ------------- Evolutions (1) 500 Regions Visited (2) 400 Robots Destroyed (43) 215 Value Destroyed (783) 783 Prototype IDs (2) 40 Alien Tech Used (0) 0 Bonus (0) 0 TOTAL SCORE: 1938 Bonus ------- None Cogmind --------- Core Integrity 0/400 Matter 288/300 Energy 247/265 System Corruption 2% Temperature Hot (244) Movement Treading (160) Location -9/Materials Parts ------- > --- POWER (1) -------- Improved Ion Engine > --- PROPULSION (3) --- Light Treads Light Treads Light Treads > --- UTILITY (3) ------ Large Storage Unit Visual Processing Unit Salvage Targeting Computer > --- WEAPON (2) ------- Ion Cannon Light Assault Rifle > --- INVENTORY (15) --- Airjet Airjet Airjet Airjet Heat Sink Improved Sensor Array Improved Sensor Array Beam Rifle Ion Cannon Ion Cannon Ion Cannon Peak State ------------ > --- POWER ------------ Improved Ion Engine > --- PROPULSION ------- Airjet Airjet Airjet > --- UTILITY ---------- Large Storage Unit Visual Processing Unit Salvage Targeting Computer > --- WEAPON ----------- Beam Rifle Light Assault Rifle > --- INVENTORY -------- Light Treads Light Treads Light Treads Heat Sink Improved Sensor Array Improved Sensor Array Ion Cannon Ion Cannon [Rating: 20] Favorites ----------- Power Ion Engine Engine Ion Engine Propulsion Light Treads Treads Light Treads Leg Aluminum Leg Hover Unit Airjet Utility Improved Terrain Scanner Device Improved Terrain Scanner Storage Small Storage Unit Processor Salvage Targeting Computer Hackware Hacking Suite Weapon Assault Rifle Energy Gun Medium Laser Energy Cannon Ion Cannon Ballistic Gun Assault Rifle Special Weapon Mining Laser Special Melee Weapon Datajack Build | -11 -10 -9 ------- Run | Yrd Mat Mat Slots Evolved 2 | . . 2 Power . | . . . Propulsion 1 | . . 1 Utility 1 | . . 1 Weapon . | . . . Parts Attached 33 | 9 5 19 Power 4 | 1 1 2 Engine 4 | 1 1 2 Core . | . . . Reactor . | . . . Propulsion 10 | 3 1 6 Treads 5 | 2 . 3 Leg 2 | 1 1 . Wheel . | . . . Hover 3 | . . 3 Flight . | . . . Utility 8 | 3 2 3 Device 2 | 2 . . Storage 3 | 1 1 1 Processor 2 | . . 2 Hackware 1 | . 1 . Protection . | . . . Artifact . | . . . Weapon 11 | 2 1 8 Energy Gun 2 | 1 . 1 Energy Cannon 3 | . 1 2 Ballistic Gun 3 | 1 . 2 Ballistic Cannon . | . . . Launcher . | . . . Special Weapon 2 | . . 2 Impact Weapon . | . . . Slashing Weapon . | . . . Piercing Weapon . | . . . Special Melee Weapon 1 | . . 1 Unidentified Prototypes . | . . . Parts Lost 14 | . 1 13 Power 2 | . . 2 Propulsion 2 | . . 2 Utility 3 | . 1 2 Weapon 7 | . . 7 Highest Loss Streak 13 | . 1 13 To Critical Strikes . | . . . Average Backups 7 | 6 7 7 Power . | . 1 . Propulsion 1 | 1 1 1 Utility 2 | 1 2 2 Weapon 2 | 1 3 2 Tool/Special . | . . . Unused Backups 7 | . 1 6 Power . | . . . Propulsion 1 | . . 1 Utility 4 | . 1 3 Weapon 2 | . . 2 Tool/Special . | . . . Average Slot Usage (%) 90 | . 98 82 Engine 12 | . 14 10 Treads 16 | . 14 17 Leg 9 | . 13 5 Device 6 | . 8 3 Storage 12 | . 14 11 Processor 5 | . . 10 Hackware 3 | . 4 2 Energy Gun 7 | . 11 2 Energy Cannon 6 | . 2 11 Ballistic Gun 10 | . 14 5 Peak Build Rating 20 | 11 10 20 Average Rating 10 | 8 9 12 On Entrance 6 | . 10 10 Avg Prop Armor Cover (%) 15 | 15 . . Naked Turns . | . . . Heaviest Build 39 | 15 20 39 Greatest Support 60 | 40 40 60 Greatest Overweight (x) 6 | . . 6 Average Overweight (x) . | . . . Largest Inventory Capacity 15 | 8 10 15 Average Capacity 9 | 7 8 12 Most Carried 11 | 8 9 11 Average Carried 7 | 6 7 7 Final Capacity 15 | 8 10 15 Final Carried 11 | 8 9 11 Class Distribution -------------------- 80% | Mutant 19% | Scavenger-Mutant Dominant Class ---------------- Mutant | -10/Materials Scavenger-Mutant | -9/Materials Resources | -11 -10 -9 ----------- Run | Yrd Mat Mat Matter Collected 881 | 396 184 301 Remotely . | . . . Salvage Created 1191 | 311 458 422 Parts 93 | 32 28 33 Haulers Intercepted . | . . . Recyclers Shooed 1 | . 1 . Parts Field Recycled . | . . . Retrieved Matter . | . . . Parts Self-Destructed . | . . . Prevented . | . . . Parts Restored . | . . . Kills | -11 -10 -9 ------- Run | Yrd Mat Mat Combat Hostiles Destroyed 22 | . 12 10 Guns 17 | . 10 7 Cannons 5 | . 2 3 Classes Destroyed 10 | 3 4 3 Worker 5 | 4 . 1 Builder 1 | . . 1 Tunneler 9 | 9 . . Recycler 1 | 1 . . Operator 3 | . 2 1 Watcher 2 | . 1 1 Swarmer 7 | . 3 4 Grunt 12 | . 9 3 Brawler 1 | . . 1 Sentry 2 | . . 2 Best Kill Streak 4 | 3 3 4 Combat Bots Only 4 | . 3 4 Max Kills in Single Turn 1 | 1 1 1 Gunslinging . | . . . Exploded . | . . . Melee . | . . . Uniques/NPCs Destroyed . | . . . Combat | -11 -10 -9 -------- Run | Yrd Mat Mat Hostile Shots Fired 235 | . 75 160 Missed 53 | . 21 32 Hits 182 | . 54 128 Melee 4 | . . 4 Projectile 178 | . 54 124 Critical Strikes 3 | . 1 2 Damage Taken 1851 | . 577 1274 Core 511 | . 108 403 Absorbed by Shields . | . . . Regen/Repaired (Parts) 94 | . . 94 Core Remaining (%) 78 | 100 56 . Volleys Fired 126 | 32 43 51 Largest 2 | 2 2 2 Hottest 200 | 70 80 200 Shots Fired 238 | 64 86 88 Gun 188 | 64 79 45 Cannon 46 | . 7 39 Launcher . | . . . Special 4 | . . 4 Kinetic 108 | 32 43 33 Thermal 130 | 32 43 55 Explosive . | . . . Electromagnetic . | . . . Robot Hit Streak 12 | 9 6 12 Robot Miss Streak 4 | 3 4 2 Penetration Max . | . . . Secondary Targets 4 | . 3 1 Max Gunslinging Chain 1 | . 1 1 Shots Hit Robots 139 | 35 46 58 Core Hits 59 | 15 24 20 Critical Kills . | . . . Critical Parts Destroyed . | . . . Critical Strikes 3 | 2 1 . Burn 3 | 2 1 . Melee Attacks . | . . . Impact . | . . . Slashing . | . . . Piercing . | . . . Sneak Attacks . | . . . Combat Hostiles . | . . . Follow-up Attacks . | . . . Damage Inflicted 2024 | 459 579 986 Guns 1372 | 459 544 369 Cannons 604 | . 35 569 Explosions . | . . . Melee . | . . . Ramming . | . . . Kinetic 758 | 222 281 255 Thermal 1266 | 237 298 731 Explosive . | . . . Electromagnetic . | . . . Impact . | . . . Slashing . | . . . Piercing . | . . . Highest Corruption 2 | . . 2 Average Corruption 2 | . . 2 Corruption Purged . | . . . Corruption Blocked . | . . . Effects 9 | . . 9 Message Errors 2 | . . 2 Matter Fused 3 | . . 3 Heat Flow Errors 2 | . . 2 Data Loss (minor) 2 | . . 2 Overload Shots . | . . . Overflow Damage 14 | . . 14 Projectiles 14 | . . 14 Explosions . | . . . Melee . | . . . Knockbacks . | . . . Impact . | . . . Kinetic . | . . . Secondary . | . . . Self-Inflicted Damage . | . . . Shots . | . . . Rammed . | . . . Targets Rammed . | . . . Kicked . | . . . Crushed . | . . . Highest Temperature 327 | 54 123 327 Average Temperature 51 | 15 36 81 Received Heat Transfer 528 | . 264 264 Siege Activations . | . . . Martial Activations . | . . . Shielding Activations . | . . . Robots Disrupted . | . . . Combat Hostiles . | . . . Robots Corrupted . | . . . Combat Hostiles . | . . . Parts Fried . | . . . Impact Corruptions . | . . . Robots Melted . | . . . Combat Hostiles . | . . . Parts Melted 2 | 1 . 1 Heat Transferred 3171 | 851 925 1395 Parts Sabotaged . | . . . Parts Stolen . | . . . Parts Stripped . | . . . Power Chain Reactions . | . . . Alert | -11 -10 -9 ------- Run | Yrd Mat Mat Maximum Alert Level . | . . . Low Security (%) 100 | 100 100 100 Level 1 . | . . . Level 2 . | . . . Level 3 . | . . . Level 4 . | . . . Level 5 . | . . . High Security . | . . . Max Security . | . . . Peak Influence 156 | 10 156 111 Initial 52 | . . 52 Average 51 | 1 80 61 Influence Increases 789 | 70 353 366 Destroy 0b10 Robot/C 440 | . 240 200 Destroy 0b10 Robot/NC 105 | 70 15 20 Destroy Leader 104 | . 52 52 Successful Hack 15 | . . 15 Disable Machine 30 | . . 30 Destroy Structure 5 | . 1 4 Lose Combat Pursuer 90 | . 45 45 Influence Decreases 755 | 70 227 458 Entered New Map 74 | . . 74 Time Decay 541 | 70 217 254 Lost Part 140 | . 10 130 Squads Dispatched 6 | . 5 1 Investigation 2 | . 2 . Extermination . | . . . Reinforcement 4 | . 3 1 Assault . | . . . Garrison . | . . . Intercept . | . . . Searches Triggered . | . . . Construction Impeded . | . . . Haulers Reinforced . | . . . Active Scanning Responses . | . . . Cargo Convoy Interrupts . | . . . Stealth | -11 -10 -9 --------- Run | Yrd Mat Mat Distress Signals 1 | . 1 . Communications Jammed . | . . . Distress Signals . | . . . Times Spotted 40 | . 21 19 Peak Tracking Total 8 | . 8 7 Tactical Retreats 4 | . 2 2 Traps | -11 -10 -9 ------- Run | Yrd Mat Mat Traps Triggered 2 | . 2 . Indirectly . | . . . Trap Hack Attempts . | . . . Triggered . | . . . Disarmed . | . . . Reprogrammed . | . . . Reused . | . . . Traps Extracted . | . . . Installed . | . . . Triggered . | . . . Machines | -11 -10 -9 ---------- Run | Yrd Mat Mat Machines Disabled 2 | . . 2 Max in Single Turn 1 | . . 1 Machines Repaired . | . . . Machines Dismantled . | . . . Machines Sabotaged . | . . . Overloaded Fab Kills . | . . . Hacking | -11 -10 -9 --------- Run | Yrd Mat Mat Machines Accessed 5 | . 2 3 Terminals 3 | . 1 2 Fabricators . | . . . Repair Stations 1 | . . 1 Recycling Units 1 | . 1 . Scanalyzers . | . . . Garrison Access . | . . . Total Hacks 18 | . 7 11 Successful 11 | . 4 7 Failed 7 | . 3 4 Catastrophic . | . . . Database Lockouts . | . . . Manual 1 | . . 1 Terminals 12 | . 4 8 Fabricators . | . . . Repair Stations 3 | . . 3 Recycling Units 3 | . 3 . Scanalyzers . | . . . Garrison Access . | . . . Terminal Hacks 6 | . 1 5 Prototype ID Bank 1 | . . 1 Emergency Access Points 1 | . . 1 Surveillance Status 1 | . . 1 Hauler Manifests 1 | . . 1 Zone Layout 2 | . 1 1 Fabricator Hacks . | . . . Repair Station Hacks 2 | . . 2 Scan Component 1 | . . 1 Repair 1 | . . 1 Recycling Unit Hacks 3 | . 3 . Report Inventory 1 | . 1 . Retrieve Components 2 | . 2 . Scanalyzer . | . . . Garrison Access Hacks . | . . . Unauthorized Hacks . | . . . Terminals . | . . . Fabricators . | . . . Repair Stations . | . . . Recycling Units . | . . . Scanalyzers . | . . . Garrison Access . | . . . Data Cores Recovered . | . . . Used . | . . . Hacking Detections 4 | . 2 2 Full Trace Events . | . . . Feedback Events . | . . . Feedback Blocked . | . . . Robot Schematics Acquired . | . . . Robots Built . | . . . Authchips . | . . . Time . | . . . Total Robot Build Rating . | . . . Part Schematics Acquired . | . . . Parts Built . | . . . Authchips . | . . . Time . | . . . Total Part Build Rating . | . . . Part Studies Acquired . | . . . Parts Repaired 1 | . . 1 Time 26 | . . 26 Parts Recycled . | . . . Recycled Matter . | . . . Retrieved Matter . | . . . Retrieved Components 9 | . 9 . Parts Scanalyzed . | . . . Part Schematics Acquired . | . . . Parts Damaged . | . . . Bothacking | -11 -10 -9 ------------ Run | Yrd Mat Mat Used RIF Installer . | . . . Robots Hacked . | . . . Non-combat . | . . . Combat . | . . . Robot Hacks Applied . | . . . Relay Couplers Released . | . . . Fabnet Peak Effective % . | . . . Robots Rewired . | . . . Allies Hacked . | . . . Hacks Repelled . | . . . Allies | -11 -10 -9 -------- Run | Yrd Mat Mat Total Allies . | . . . Largest Group . | . . . Highest-Rated Group . | . . . Highest-Rated Ally . | . . . Total Orders . | . . . Ally Attacks . | . . . Total Damage . | . . . Kills . | . . . Allies Corrupted . | . . . Allies Melted . | . . . Intel | -11 -10 -9 ------- Run | Yrd Mat Mat Active Infowar (turns) 1187 | 398 339 450 Optics 277 | . . 277 Terrain 910 | 398 339 173 Robot Analysis Total . | . . . Derelict Logs Recovered . | . . . Drone Launches . | . . . Drone Recoveries . | . . . Exploration | -11 -10 -9 ------------- Run | Yrd Mat Mat Turns Passed 1558 | 434 577 547 Spaces Moved 701 | 218 292 191 Core 28 | 21 . 7 Treads 426 | 170 114 142 Legs 246 | 27 178 41 Wheels . | . . . Hover 1 | . . 1 Flight . | . . . Fastest Speed 50 | 50 120 112 Average Speed 147 | 144 135 170 Slowest Speed 350 | 160 160 350 Overloaded Moves . | . . . Propulsion Burnouts . | . . . Robots Hopped . | . . . Potential Cave-ins . | . . . Cave-ins Triggered . | . . . Exploration Rate (%) 24 | 9 54 11 Regions Visited 2 Branch Regions . Pre-discovered Areas . | . . . Known Exits Taken . | . . . Unknown Exits Taken 2 | 1 1 . Scrap Searched . | . . . Spaces Dug . | . . . Terrain Destroyed 3 | . . 3 Melee . | . . . Projectile 3 | . . 3 AOE . | . . . Terrain Rammed . | . . . Walls Destroyed . | . . . Machines Disabled . | . . . Actions | -11 -10 -9 --------- Run | Yrd Mat Mat Total 971 | 269 388 314 Wait 64 | . 38 26 Move 699 | 217 291 191 Hop . | . . . Pick Up 33 | 9 5 19 Fast Attach 7 | 7 . . Attach 19 | 1 1 17 Detach . | . . . Swap 16 | 2 5 9 Drop 7 | 1 5 1 Fire 126 | 32 43 51 Melee . | . . . Ram . | . . . Kick . | . . . Crush . | . . . Escape Stasis . | . . . Rewire . | . . . Trap . | . . . Miscellaneous . | . . . Route ------- -11/Scrapyard -10/Materials (discovered 3 exits: *Mat x2 / [*Min]) -9/Materials History --------- Turn | Location | Event 18 | -11/Scrapyard | Discovered new exit (range 13) 435 | -11/Scrapyard | Entered Materials 436 | -10/Materials | Build established: Mutant 743 | -10/Materials | Discovered new exit (range 16) 847 | -10/Materials | Discovered new exit (range 12) 982 | -10/Materials | Discovered new exit (range 6) 1012 | -10/Materials | Entered another Materials area 1012 | -9/Materials | Evolved 2 slots: Propulsion x1, Utility x1 1055 | -9/Materials | Repaired Assault Rifle 1175 | -9/Materials | Core integrity fell below 50% 1225 | -9/Materials | Core integrity fell below 20% 1245 | -9/Materials | Lost 13 parts (2p2n2u7w) 1547 | -9/Materials | Build established: Scavenger-Mutant 1559 | -9/Materials | Destroyed by G-34 Mercenary with Small Laser Last Messages --------------- System corrupted: Matter fused (-10). Acquired Ion Cannon. Acquired Airjet. G-34 Mercenary destroyed. System corrupted: Component data lost. Acquired 36 matter. System corrupted: Matter fused (-10). Acquired Ion Cannon. System corrupted: Heat flow error (+284). Electrolysis Chamber disabled. System corrupted: Heat flow error (+279). Acquired 22 matter. Destroyed Datajack. O-16 Technician destroyed. Acquired 29 matter. Acquired 11 matter. U-05 Engineer destroyed. U-05 Engineer builds a Wall. THMYIQPEP& IDKSYO0DHAEINT3MY% U-05 Engineer builds a Wall. Map ----- +----------------------------------------------------+ | | | | | | | | | | | | | | | | | ?##############?????#??????????????#???????#?? | | ?# """ """ #??????????????#???????????????? | | ?# """"""""" #???????#?##????#??????##??????? | | ?# """"" #????######???????#????#????##?? | | ?# #????# #?????????????#???????? | | ?# ###### #??#????????????????#?? | | ??###"T"####+## #??#?????????????#????? | | ????#"""?# #?##???????#??????????? | | ????###??# #?#???#??#??#????##???? | | ???#########+## !!#???????##?######?????? | | ??# ##! ######?#?#????#??#"""##????? | | ??#= """"""" ## ##??????????#????#"R"#?##### | | ?????""""""" ##[ ##################" "### # | | ?????""""""" + [=#/" " + + # # | | ?????""""""" ## %+%=T" ##### T # # | | ??????"""""" #######! #[ %* #?#?# + + | | ?????? #?????#[=# %[ ##### | | # # | | ?????##########?????#@*+ ! + + # # | | ?????????# ?????# # ##### # # | | ?????????# ] ??## ########?#?######## # | | ?????????# = # #????#??##??????## # | | ?????????# + ##??##?#??????#??# # | | ?????????# # #???????#???????## # | | ?????????# "" ""??# gu ################## | | ?????????# """ ????## #### | | ?????????? ?"??"????#=#### ############# | | ????????????????????#a#??# # ##??##### | | ????????????????#???#!#??# + #???????? | | ????????????????????#%##?# # #???????? | | ????????????????????#!#??# #########???????? | | ????????????????????#!#?????????#########????? | | ??????????????????###+####???? ????? | | ??????????????????# #?? ???? | | ??????????????????# # ???????? | | ??????????????????# """ + #???????????????? | | ??????????????????# """ # #???????????????? | | ??????????????????# """ #? #???????????????? | | ??????????????????# #?? #???????????????? | | ??????????????????########???#???????????????? | | ?????????????????????????????????????????????? | | ?????????????????????????????????????????????? | | ?????????????????????????????????????????????? | +----------------------------------------------------+ Best States ------------- Heat Dissipation 28 Energy Generation 12 Energy Capacity 265 Matter Stores 300 Matter Capacity 300 Sight Range 18 Terrain Scan Range 16 Terrain Scan Density 10 Evasion (%) 55 Recoil Reduction 3 Salvage Targeting 1 Offensive Hacking 10 Item Schematics ----------------- None Robot Schematics ------------------ None Fabricated ------------ Nothing Repaired ---------- Assault Rifle | 6% | -9/Materials Studied --------- None Alien Tech Used ----------------- None Achievements -------------- Hydra Challenges ------------ None Game ------ Seed ExperimentalAntisysPlatform Manual? 0 Play Time 00:20:43 Cumulative 18.7 hours Start 2025.11.27 @ 16:07:18 End 2025.11.27 @ 16:28:55 Sessions 1 Manual Loads 0 Difficulty Rogue Special Mode None Game No. 12 Rogue 2 Adventurer 2 Explorer 8 Win Type - Total 1 Types 1/0/0/0/0/0/0/0/0/0 Lore% 22 Gallery% 24 Achievement% 19 Wizard Run 0 Options --------- Layout 1 ASCII 0 Keyboard 0 Movement Mouse Keybinds 0 Fullscreen 1 Font 24/Smallcaps Map View 50x35 Zoom Use 0% Tactical HUD 0 Map Filters NONE Filters NONE Steam 1 RUN: 6ef402a7-6de9-42d4-a2fc-1bba6eab6250